fUST/lending_fUST_20250505
["ID","MTS","AMOUNT","RATE_DAILY","PERIOD"]
[359977668,1746459060566,-400.0,0.0003589,14]
[359977669,1746459060576,-400.0,0.0003589,14]
[359977670,1746459060585,-400.0,0.0003589,14]
[359977671,1746459060595,-400.0,0.0003589,14]
[359977672,1746459060604,-2257.14,0.0003589,14]
[359977673,1746459060614,-1518.57,0.0003589,14]
[359977674,1746459060624,-414.81,0.0003589,14]
[359977675,1746459060634,-400.0,0.0003589,14]
[359977676,1746459060643,-400.0,0.0003589,14]
[359977677,1746459060652,-400.0,0.0003589,14]
[359977678,1746459060662,-400.0,0.0003589,14]
[359977679,1746459060671,-1593.53,0.0003589,14]
[359977680,1746459060681,-2368.2,0.0003589,14]
[359977681,1746459060691,-400.0,0.0003589,14]
[359977682,1746459060700,-400.0,0.0003589,14]
[359977683,1746459060710,-400.0,0.0003589,14]
[359977684,1746459060719,-400.0,0.0003589,14]
[359977685,1746459060729,-1367.75,0.0003589,14]
[359977686,1746459060738,-232.15029405,0.0003589,14]
[359977687,1746459060748,-1464.68,0.0003589,14]
[359977688,1746459060758,-561.25,0.0003589,14]
[359977689,1746459060767,-467.76724636,0.0003589,14]
[359977690,1746459060776,-400.0,0.0003589,14]
[359977691,1746459060785,-1811.8,0.0003589,14]
[359977692,1746459060795,-400.0,0.0003589,14]
[359977693,1746459060804,-443.99,0.0003589,14]
[359977694,1746459060814,-400.0,0.0003589,14]
[359977695,1746459060823,-3292.85,0.0003589,14]
[359977696,1746459060833,-615.41,0.0003589,14]
[359977697,1746459060842,-182.149004,0.0003589,14]
[359977698,1746459060852,-182.149004,0.0003589,14]
[359977699,1746459060861,-358.0,0.0003589,14]
[359977700,1746459060871,-400.0,0.0003589,14]
[359977701,1746459060880,-1098.32,0.0003589,14]
[359977702,1746459060889,-400.0,0.0003589,14]
[359977703,1746459060899,-602.37,0.0003589,14]
[359977704,1746459060909,-182.149004,0.0003589,14]
[359977705,1746459060919,-400.0,0.0003589,14]
[359977706,1746459060929,-210.63447585,0.0003589,14]
[359977707,1746459060939,-182.149,0.0003589,14]
[359977708,1746459060948,-400.0,0.0003589,14]
[359977709,1746459060958,-2001.03,0.0003589,14]
[359977710,1746459060967,-400.0,0.0003589,14]
[359977711,1746459060976,-400.0,0.0003589,14]
[359977712,1746459060985,-400.0,0.0003589,14]
[359977713,1746459060995,-5069.21,0.0003589,14]
[359977714,1746459061004,-950.07,0.0003589,14]
[359977715,1746459061014,-426.76,0.0003589,14]
[359977716,1746459061023,-400.0,0.0003589,14]
[359977717,1746459061032,-400.0,0.0003589,14]
[359977718,1746459061041,-218.628785,0.0003589,14]
[359977719,1746459061051,-218.628785,0.0003589,14]
[359977720,1746459061060,-500.0,0.0003589,15]
[359977721,1746459061069,-4475.41,0.0003589,14]
[359977722,1746459061078,-218.628785,0.0003589,14]
[359977723,1746459061170,-218.628776,0.0003589,14]
[359977724,1746459061193,-400.0,0.0003589,14]
[359977725,1746459061202,-400.0,0.0003589,14]
[359977726,1746459061212,-400.0,0.0003589,14]
[359977727,1746459061221,-400.0,0.0003589,14]
[359977728,1746459061230,-400.0,0.0003589,14]
[359977729,1746459061239,-400.0,0.0003589,14]
[359977730,1746459061250,-400.0,0.0003589,14]
[359977731,1746459061259,-400.0,0.0003589,14]
[359977732,1746459061268,-1810.88,0.0003589,14]
[359977733,1746459061277,-400.0,0.0003589,14]
[359977734,1746459061287,-26298.19,0.0003589,14]
[359977735,1746459061295,-400.0,0.0003589,14]
[359977736,1746459061306,-400.0,0.0003589,14]
[359977737,1746459061315,-400.0,0.0003589,14]
[359977738,1746459061325,-400.0,0.0003589,14]
[359977739,1746459061334,-516.32,0.0003589,14]
[359977740,1746459061343,-12121.33,0.0003589,14]
[359977741,1746459061353,-400.0,0.0003589,14]
[359977742,1746459061362,-630.62,0.0003589,14]
[359977743,1746459061372,-400.0,0.0003589,14]
[359977744,1746459061381,-400.0,0.0003589,14]
[359977745,1746459061390,-400.0,0.0003589,14]
[359977746,1746459061400,-967.48,0.0003589,14]
[359977747,1746459061409,-400.0,0.0003589,14]
[359977748,1746459061418,-438.3,0.0003589,14]
[359977749,1746459061429,-400.0,0.0003589,14]
[359977750,1746459061439,-400.0,0.0003589,14]
[359977751,1746459061448,-400.0,0.0003589,14]
[359977752,1746459061457,-400.0,0.0003589,14]
[359977753,1746459061466,-663.28,0.0003589,14]
[359977754,1746459061476,-466.94,0.0003589,14]
[359977755,1746459061486,-400.0,0.0003589,14]
[359977756,1746459061497,-535.03,0.0003589,14]
[359977757,1746459061507,-400.0,0.0003589,14]
[359977758,1746459061516,-400.0,0.0003589,14]
[359977759,1746459061526,-217.62921253,0.0003589,14]
[359977760,1746459061535,-8594.79,0.0003589,14]
[359977761,1746459061544,-1871.33,0.0003589,14]
[359977762,1746459061554,-400.0,0.0003589,14]
[359977763,1746459061563,-400.0,0.0003589,14]
[359977764,1746459061572,-400.0,0.0003589,14]
[359977765,1746459061582,-400.0,0.0003589,14]
[359977766,1746459061592,-577.34,0.0003589,14]
[359977767,1746459061601,-9518.68,0.0003589,14]
[359977768,1746459061611,-400.0,0.0003589,14]
[359977769,1746459061620,-400.0,0.0003589,14]
[359977770,1746459061630,-400.0,0.0003589,8]
[359977771,1746459061640,-400.0,0.0003589,14]
[359977772,1746459061649,-1539.51,0.0003589,14]
[359977773,1746459061659,-2727.74,0.0003589,14]
[359977774,1746459061668,-400.0,0.0003589,14]
[359977775,1746459061678,-2624.73,0.0003589,14]
[359977776,1746459061688,-400.0,0.0003589,14]
[359977777,1746459061697,-524.64,0.0003589,14]
[359977778,1746459061707,-490.45,0.0003589,14]
[359977779,1746459061716,-400.0,0.0003589,14]
[359977780,1746459061726,-400.0,0.0003589,14]
[359977781,1746459061735,-607.28,0.0003589,14]
[359977782,1746459061744,-400.0,0.0003589,14]
[359977783,1746459061754,-7101.67,0.0003589,14]
[359977784,1746459061764,-151.25648963,0.0003589,14]
[359977785,1746459061774,-400.0,0.0003589,14]
[359977786,1746459061784,-400.0,0.0003589,14]
[359977787,1746459061794,-405.45610985,0.0003589,14]
[359977788,1746459061804,-1814.06,0.0003589,14]
[359977789,1746459061814,-400.0,0.0003589,14]
[359977790,1746459061823,-400.0,0.0003589,14]
[359977791,1746459061833,-2536.52,0.0003589,14]
[359977792,1746459061843,-400.0,0.0003589,14]
[359977793,1746459061852,-3702.96,0.0003589,14]
[359977794,1746459061862,-400.0,0.0003589,14]
[359977795,1746459061872,-400.0,0.0003589,14]
[359977796,1746459061881,-400.0,0.0003589,14]
[359977797,1746459061891,-400.0,0.0003589,14]
[359977798,1746459061901,-834.85,0.0003589,14]
[359977799,1746459061910,-400.0,0.0003589,14]
[359977800,1746459061920,-2949.6,0.0003589,14]
[359977801,1746459061929,-292.250141,0.0003589,14]
[359977802,1746459061939,-400.0,0.0003589,14]
[359977803,1746459061949,-1165.98,0.0003589,14]
[359977804,1746459061959,-400.0,0.0003589,14]
[359977805,1746459061968,-400.0,0.0003589,14]
[359977806,1746459061977,-377.07475999,0.0003589,14]
[359977807,1746459061987,-400.0,0.0003589,14]
[359977808,1746459061997,-400.0,0.0003589,14]
[359977809,1746459062006,-1203.48,0.0003589,14]
[359977810,1746459062015,-400.0,0.0003589,14]
[359977811,1746459062025,-400.0,0.0003589,14]
[359977812,1746459062034,-400.0,0.0003589,14]
[359977813,1746459062045,-400.0,0.0003589,14]
[359977814,1746459062054,-400.0,0.0003589,14]
[359977815,1746459062063,-3635.95,0.0003589,14]
[359977816,1746459062072,-1832.64,0.0003589,14]
[359977817,1746459062082,-1249.62,0.0003589,14]
[359977818,1746459062091,-400.0,0.0003589,14]
[359977819,1746459062102,-200.82325157,0.000359,33]
[359977820,1746459062112,-1180.0,0.00035917,5]
[359977821,1746459062122,-1180.0,0.00035945,5]
[359977822,1746459062131,-1180.0,0.00035972,5]
[359977823,1746459062141,-1180.0,0.00036,5]
[359977824,1746459062151,-500.0,0.00036,30]
[359977825,1746459062160,-269.56553221,0.00036,10]
[359977826,1746459062169,-1031.139907,0.00036,10]
[359977827,1746459062179,-182.23035355,0.00036,7]
[359977828,1746459062188,-860.37071041,0.00036001,7]
[359977829,1746459062197,-1000.0,0.0003602,10]
[359977830,1746459062207,-1180.0,0.00036027,5]
[359977831,1746459062216,-1000.0,0.0003604,10]
[359977832,1746459062226,-1180.0,0.00036054,5]
[359977833,1746459062235,-800.0,0.00036058,7]
[359977834,1746459062245,-160.0,0.0003606,7]
[359977835,1746459062255,-1000.0,0.0003606,10]
[359977836,1746459062265,-1000.0,0.0003608,10]
[359977837,1746459062274,-1101.267136,0.0003608,10]
[359977838,1746459062284,-1180.0,0.00036082,5]
[359977839,1746459062294,-1100.0,0.00036082,60]
[359977840,1746459062303,-160.0,0.000361,49]
[359977841,1746459062312,-160.0,0.000361,49]
[359977842,1746459062322,-1000.0,0.000361,10]
[359977843,1746459062331,-856.51627851,0.000361,10]
[359977844,1746459063045,-6379.62182904,0.00035457,2]
[359977845,1746459063057,-500.0,0.00035457,2]
[359977849,1746459303188,8599.46460687,0.00018,2]
[359978255,1746459934150,-347.28256706,0.00030884,2]
[359978532,1746460034090,-189.799211,0.00027397,2]
[359978533,1746460034110,-84.29279553,0.00030884,2]
[359978534,1746460035087,-237.55488211,0.00030884,2]
[359978535,1746460035108,-214.71604552,0.00031276,3]
[359978536,1746460037089,-85.28395448,0.00031276,3]
[359978537,1746460037111,-300.0,0.00031276,2]
[359978538,1746460037132,-300.0,0.00031277,3]
[359978539,1746460037153,-77.61035474,0.00031277,3]
[359978540,1746460037185,-222.38964526,0.00031277,3]
[359978541,1746460037207,-300.0,0.00031277,3]
[359978542,1746460037230,-1200.0,0.00031277,3]
[359978543,1746460037251,-4169.06374804,0.00031278,2]
[359978544,1746460043091,-3787.72312012,0.00031278,2]
[359978551,1746460164084,-709.12143031,0.00029178,2]
[359978552,1746460164104,-198.37355346,0.000299,2]
[359978553,1746460164125,-1148.0,0.0003,120]
[359978554,1746460164147,-2043.21313184,0.00031278,2]
[359978555,1746460164167,-20759.85329038,0.00031371,2]
[359978556,1746460166134,-4140.14670962,0.00031371,2]
[359978558,1746460172134,-461.08099227,0.000319,25]
[359978559,1746460172155,-500.0,0.00032,4]
[359978560,1746460172729,1080.15519412,0.00030784,2]
[359978598,1746460232514,-387.19449543,0.00032169,2]
[359978600,1746460232524,-250.0,0.00032196,2]
[359978602,1746460232534,-500.0,0.000322,4]
[359978604,1746460232543,-727.49,0.00032259,3]
[359978606,1746460232552,-939.79206246,0.00032259,2]
[359978608,1746460232562,-156.90129704,0.00032267,2]
[359978610,1746460232572,-380.70390009,0.00032267,2]
[359978612,1746460232582,-543.57063647,0.00032267,2]
[359978614,1746460232591,-500.0,0.00032268,2]
[359978616,1746460232600,-500.0,0.00032268,2]
[359978618,1746460232610,-295.87968711,0.00032268,2]
[359978620,1746460232619,-955.27947255,0.00032268,2]
[359978622,1746460232629,-955.27947255,0.00032268,2]
[359978624,1746460232639,-955.27947255,0.00032268,2]
[359978626,1746460232649,-955.27947255,0.00032268,2]
[359978628,1746460232658,-955.27947255,0.00032268,2]
[359978630,1746460232668,-955.27947255,0.00032268,2]
[359978632,1746460232678,-955.27947255,0.00032268,2]
[359978634,1746460232687,-955.27947255,0.00032268,2]
[359978636,1746460232696,-955.27947255,0.00032268,2]
[359978638,1746460232706,-955.27947255,0.00032268,2]
[359978640,1746460232715,-1404.29025031,0.00032268,2]
[359978642,1746460232724,-1404.29025031,0.00032268,2]
[359978644,1746460232734,-1404.29025031,0.00032268,2]
[359978646,1746460232743,-1404.29025031,0.00032268,2]
[359978648,1746460232752,-1404.29025031,0.00032268,2]
[359978650,1746460232761,-1404.29025031,0.00032268,2]
[359978652,1746460232771,-1404.29025031,0.00032268,2]
[359978654,1746460232780,-1404.29025031,0.00032268,2]
[359978656,1746460232790,-1404.29025031,0.00032268,2]
[359978658,1746460232800,-1404.29025031,0.00032268,2]
[359978660,1746460232809,-1404.29025031,0.00032268,2]
[359978662,1746460232819,-1404.29025031,0.00032268,2]
[359978664,1746460232829,-1404.29025031,0.00032268,2]
[359978666,1746460232838,-1404.29025031,0.00032268,2]
[359978668,1746460232847,-1404.29025031,0.00032268,2]
[359978670,1746460232857,-1404.29025031,0.00032268,2]
[359978672,1746460232866,-1404.29025031,0.00032268,2]
[359978674,1746460232875,-1404.29025031,0.00032268,2]
[359978676,1746460232885,-1404.29025031,0.00032268,2]
[359978678,1746460232894,-1404.29025031,0.00032268,2]
[359978680,1746460232903,-1404.29025031,0.00032268,2]
[359978682,1746460232912,-1404.29025031,0.00032268,2]
[359978684,1746460232921,-1404.29025031,0.00032268,2]
[359978686,1746460232931,-1404.29025031,0.00032268,2]
[359978688,1746460232940,-1404.29025031,0.00032268,2]
[359978690,1746460232950,-1404.29025031,0.00032268,2]
[359978692,1746460232960,-1404.29025031,0.00032268,2]
[359978694,1746460232969,-1385.1408378,0.00032268,2]
[359978696,1746460232979,-1385.1408378,0.00032268,2]
[359978698,1746460232989,-1385.1408378,0.00032268,2]
[359978700,1746460232998,-1385.1408378,0.00032268,2]
[359978702,1746460233007,-1385.1408378,0.00032268,2]
[359978704,1746460233017,-1385.1408378,0.00032268,2]
[359978706,1746460233027,-1385.1408378,0.00032268,2]
[359978708,1746460233036,-1385.1408378,0.00032268,2]
[359978710,1746460233046,-1385.1408378,0.00032268,2]
[359978712,1746460233060,-1385.1408378,0.00032268,2]
[359978714,1746460233071,-1385.1408378,0.00032268,2]
[359978716,1746460233080,-1385.1408378,0.00032268,2]
[359978718,1746460233090,-1385.1408378,0.00032268,2]
[359978720,1746460233099,-1385.1408378,0.00032268,2]
[359978722,1746460233109,-1385.1408378,0.00032268,2]
[359978724,1746460233119,-1385.1408378,0.00032268,2]
[359978726,1746460233128,-1385.1408378,0.00032268,2]
[359978728,1746460233138,-1385.1408378,0.00032268,2]
[359978730,1746460233148,-1385.1408378,0.00032268,2]
[359978732,1746460233158,-1508.26446782,0.00032268,2]
[359978734,1746460233167,-1508.26446782,0.00032268,2]
[359978736,1746460233176,-1508.26446782,0.00032268,2]
[359978738,1746460233186,-1508.26446782,0.00032268,2]
[359978740,1746460233196,-1508.26446782,0.00032268,2]
[359978742,1746460233205,-506.25609039,0.00032279,2]
[359978744,1746460233215,-22126.1833022,0.0003228,2]
[359978746,1746460233225,-469.89603123,0.0003229,2]
[359978748,1746460233235,-501.61174265,0.000323,5]
[359978750,1746460233245,-500.0,0.000323,5]
[359978751,1746460233254,-500.0,0.000323,2]
[359978752,1746460233263,-501.19613124,0.000323,5]
[359978753,1746460233273,-490.77267241,0.000323,5]
[359978754,1746460233283,-500.0,0.000323,5]
[359978755,1746460233292,-501.50885988,0.000323,5]
[359978756,1746460233302,-500.0,0.000323,5]
[359978757,1746460233311,-500.0,0.000323,5]
[359978758,1746460233322,-204.22186963,0.000323,5]
[359978759,1746460233331,-500.0,0.000323,5]
[359978760,1746460233341,-502.23852265,0.000323,5]
[359978761,1746460233351,-500.0,0.000323,5]
[359978762,1746460233360,-500.0,0.000323,5]
[359978763,1746460233370,-500.0,0.000323,2]
[359978764,1746460233379,-155.47767394,0.000323,5]
[359978765,1746460233388,-500.0,0.000323,5]
[359978766,1746460233398,-500.0,0.000323,5]
[359978767,1746460233408,-500.85089711,0.000323,5]
[359978768,1746460233419,-500.0,0.000323,5]
[359978784,1746460233564,-500.0,0.000323,5]
[359978786,1746460233577,-212.70478362,0.000323,5]
[359978788,1746460233587,-501.38028874,0.000323,2]
[359978790,1746460233596,-170.59050397,0.000323,5]
[359978792,1746460233607,-500.0,0.000323,5]
[359978794,1746460233617,-500.0,0.000323,5]
[359978796,1746460233627,-230.9059633,0.000323,5]
[359978798,1746460233637,-500.0,0.000323,5]
[359978800,1746460233647,-258.24463679,0.000323,5]
[359978802,1746460233657,-500.0,0.000323,5]
[359978804,1746460233667,-160.0,0.00032569,2]
[359978806,1746460233677,-160.0,0.00032619,2]
[359978808,1746460233687,-160.0,0.00032649,2]
[359978810,1746460233698,-1013.0323373,0.00032654,2]
[359978812,1746460233708,-445.7116256,0.000329,27]
[359978814,1746460233718,-500.0,0.00033,2]
[359978816,1746460233728,-500.0,0.00033,4]
[359978818,1746460233738,-445.71162559,0.00033141,28]
[359978820,1746460233747,-189.799211,0.00033165,2]
[359978822,1746460233758,-176.134257,0.00033168,2]
[359978823,1746460233767,-500.0,0.0003326,2]
[359978825,1746460233777,-387.19449537,0.00033273,2]
[359978827,1746460233787,-445.71162559,0.00033383,28]
[359978829,1746460233797,-500.0,0.000335,8]
[359978831,1746460233807,-445.71162559,0.00033624,29]
[359978833,1746460233816,-1454.98,0.00033629,3]
[359978836,1746460233827,-449.25318,0.00033673,2]
[359978838,1746460233838,-841.77443764,0.00033679,2]
[359978839,1746460233848,-175.43565863,0.0003368,2]
[359978840,1746460233858,-491.20687675,0.0003369,2]
[359978841,1746460233868,-292.84777523,0.0003369,2]
[359978842,1746460233878,-416.41376901,0.0003369,2]
[359978843,1746460233887,-500.0,0.000337,10]
[359978844,1746460233897,-282.518708,0.00033812,2]
[359978845,1746460233907,-445.71162559,0.00033866,29]
[359978846,1746460233916,-9946.61451315,0.000339,2]
[359978847,1746460233926,-152.98336857,0.00033939,2]
[359978848,1746460233936,-469.89603123,0.0003399,2]
[359978849,1746460233946,-1380.0,0.00034,2]
[359978850,1746460233956,-3023.0,0.00034,2]
[359978851,1746460233966,-9171.0,0.00034,2]
[359978852,1746460233975,-500.0,0.00034,8]
[359978853,1746460233985,-500.0,0.00034,5]
[359978854,1746460233995,-445.71162559,0.00034107,30]
[359978855,1746460234005,-709.12143031,0.00034178,2]
[359978856,1746460234014,-9946.61451313,0.00034204,2]
[359978857,1746460234024,-500.0,0.00034233,5]
[359978858,1746460234033,-445.71162559,0.00034348,30]
[359978859,1746460234044,-273.0325626,0.00034355,4]
[359978860,1746460234056,-387.19449537,0.00034378,2]
[359978861,1746460234066,-226.59921902,0.00034508,2]
[359978862,1746460234080,-9720.01529411,0.00034508,2]
[359978863,1746460234090,-186.17914461,0.00034571,2]
[359978864,1746460234101,-500.0,0.00034571,5]
[359978865,1746460234111,-500.0,0.00034571,5]
[359978866,1746460234121,-500.0,0.00034571,5]
[359978867,1746460234132,-500.0,0.00034571,5]
[359978868,1746460234142,-178.31917121,0.00034571,5]
[359978869,1746460234152,-445.71162559,0.0003459,31]
[359978870,1746460234165,-9946.61451313,0.00034812,2]
[359978871,1746460234175,-445.71162559,0.00034831,31]
[359978872,1746460234185,-469.89603123,0.0003488,2]
[359978873,1746460234195,-421.83547488,0.00034882,2]
[359978874,1746460234205,-1879.58412492,0.0003489,2]
[359978875,1746460234215,-228276.93135021,0.000349,2]
[359978876,1746460234224,-160.0,0.00034914,2]
[359978877,1746460234234,-469.89603123,0.00034924,2]
[359978878,1746460234244,-6853.84176484,0.00034934,2]
[359978879,1746460234253,-153.0,0.00034944,2]
[359978880,1746460234263,-153.0,0.00034944,2]
[359978881,1746460234272,-153.0,0.00034944,2]
[359978882,1746460234282,-153.0,0.00034944,2]
[359978883,1746460234292,-153.0,0.00034944,2]
[359978884,1746460234303,-153.0,0.00034944,2]
[359978885,1746460234312,-153.0,0.00034944,2]
[359978886,1746460234323,-153.0,0.00034944,2]
[359978887,1746460234333,-153.0,0.00034944,2]
[359978888,1746460234342,-153.0,0.00034944,2]
[359978889,1746460234352,-153.0,0.00034944,2]
[359978890,1746460234361,-153.0,0.00034944,2]
[359978891,1746460234371,-153.0,0.00034944,2]
[359978892,1746460234381,-153.0,0.00034944,2]
[359978893,1746460234391,-153.0,0.00034944,2]
[359978894,1746460234401,-153.0,0.00034944,2]
[359978895,1746460234412,-153.0,0.00034944,2]
[359978896,1746460234421,-153.0,0.00034944,2]
[359978897,1746460234430,-153.0,0.00034944,2]
[359978898,1746460234440,-153.0,0.00034944,2]
[359978899,1746460234450,-153.0,0.00034944,2]
[359978900,1746460234460,-153.0,0.00034944,2]
[359978901,1746460234469,-153.0,0.00034944,2]
[359978902,1746460234479,-153.0,0.00034944,2]
[359978903,1746460234489,-153.0,0.00034944,2]
[359978904,1746460234499,-153.0,0.00034944,2]
[359978905,1746460234509,-153.0,0.00034944,2]
[359978906,1746460234519,-153.0,0.00034944,2]
[359978907,1746460234528,-153.0,0.00034944,2]
[359978908,1746460234538,-153.0,0.00034944,2]
[359978909,1746460234548,-153.0,0.00034944,2]
[359978910,1746460234558,-153.0,0.00034944,2]
[359978911,1746460234567,-153.0,0.00034944,2]
[359978912,1746460234577,-153.0,0.00034944,2]
[359978913,1746460234587,-153.0,0.00034944,2]
[359978914,1746460234596,-153.0,0.00034944,2]
[359978915,1746460234606,-153.0,0.00034944,2]
[359978916,1746460234616,-153.0,0.00034944,2]
[359978917,1746460234626,-153.0,0.00034944,2]
[359978918,1746460234636,-153.0,0.00034944,2]
[359978919,1746460234646,-153.0,0.00034944,2]
[359978920,1746460234655,-153.0,0.00034944,2]
[359978921,1746460234665,-153.0,0.00034944,2]
[359978922,1746460234674,-153.0,0.00034944,2]
[359978923,1746460234685,-153.0,0.00034944,2]
[359978924,1746460234694,-153.0,0.00034944,2]
[359978925,1746460234704,-153.0,0.00034944,2]
[359978926,1746460234713,-153.0,0.00034944,2]
[359978927,1746460234723,-153.0,0.00034944,2]
[359978928,1746460234732,-153.0,0.00034944,2]
[359978929,1746460234742,-153.0,0.00034944,2]
[359978930,1746460234751,-153.0,0.00034944,2]
[359978931,1746460234761,-153.0,0.00034944,2]
[359978932,1746460234771,-153.0,0.00034944,2]
[359978933,1746460234781,-153.0,0.00034944,2]
[359978934,1746460234791,-153.0,0.00034944,2]
[359978935,1746460234801,-153.0,0.00034944,2]
[359978936,1746460234811,-153.0,0.00034944,2]
[359978937,1746460234820,-153.0,0.00034944,2]
[359978938,1746460234830,-153.0,0.00034944,2]
[359978939,1746460234839,-153.0,0.00034944,2]
[359978940,1746460234849,-153.0,0.00034944,2]
[359978941,1746460234858,-153.0,0.00034944,2]
[359978942,1746460234868,-153.0,0.00034944,2]
[359978943,1746460234878,-153.0,0.00034944,2]
[359978944,1746460234888,-153.0,0.00034944,2]
[359978945,1746460234898,-153.0,0.00034944,2]
[359978946,1746460234907,-153.0,0.00034944,2]
[359978947,1746460234917,-153.0,0.00034944,2]
[359978948,1746460234928,-153.0,0.00034944,2]
[359978949,1746460234938,-153.0,0.00034944,2]
[359978950,1746460234948,-153.0,0.00034944,2]
[359978951,1746460234958,-153.0,0.00034944,2]
[359978952,1746460234968,-153.0,0.00034944,2]
[359978953,1746460234979,-153.0,0.00034944,2]
[359978954,1746460234989,-153.0,0.00034944,2]
[359978955,1746460235000,-153.0,0.00034944,2]
[359978956,1746460235010,-153.0,0.00034944,2]
[359978957,1746460235019,-153.0,0.00034944,2]
[359978958,1746460235029,-153.0,0.00034944,2]
[359978959,1746460235038,-153.0,0.00034944,2]
[359978960,1746460235049,-153.0,0.00034944,2]
[359978961,1746460235063,-153.0,0.00034944,2]
[359978962,1746460235073,-153.0,0.00034944,2]
[359978963,1746460235082,-153.0,0.00034944,2]
[359978964,1746460235092,-153.0,0.00034944,2]
[359978965,1746460235102,-153.0,0.00034944,2]
[359978966,1746460235111,-153.0,0.00034944,2]
[359978967,1746460235122,-153.0,0.00034944,2]
[359978968,1746460235132,-153.0,0.00034944,2]
[359978969,1746460235142,-153.0,0.00034944,2]
[359978970,1746460235152,-153.0,0.00034944,2]
[359978971,1746460235162,-153.0,0.00034944,2]
[359978972,1746460235171,-153.0,0.00034944,2]
[359978973,1746460235181,-153.0,0.00034944,2]
[359978974,1746460235190,-153.0,0.00034944,2]
[359978975,1746460235200,-153.0,0.00034944,2]
[359978976,1746460235210,-153.0,0.00034944,2]
[359978977,1746460235220,-153.0,0.00034944,2]
[359978978,1746460235231,-153.0,0.00034944,2]
[359978979,1746460235241,-153.0,0.00034944,2]
[359978980,1746460235252,-153.0,0.00034944,2]
[359978981,1746460235261,-153.0,0.00034944,2]
[359978982,1746460235274,-153.0,0.00034944,2]
[359978983,1746460235284,-153.0,0.00034944,2]
[359978984,1746460235293,-153.0,0.00034944,2]
[359978985,1746460235303,-153.0,0.00034944,2]
[359978986,1746460235312,-153.0,0.00034944,2]
[359978987,1746460235322,-153.0,0.00034944,2]
[359978988,1746460235331,-153.0,0.00034944,2]
[359978989,1746460235341,-153.0,0.00034944,2]
[359978990,1746460235350,-153.0,0.00034944,2]
[359978991,1746460235360,-153.0,0.00034944,2]
[359978992,1746460235370,-153.0,0.00034944,2]
[359978993,1746460235380,-153.0,0.00034944,2]
[359978994,1746460235389,-153.0,0.00034944,2]
[359978995,1746460235399,-153.0,0.00034944,2]
[359978996,1746460235408,-153.0,0.00034944,2]
[359978997,1746460235417,-153.0,0.00034944,2]
[359978998,1746460235427,-153.0,0.00034944,2]
[359978999,1746460235437,-153.0,0.00034944,2]
[359979000,1746460235446,-153.0,0.00034944,2]
[359979001,1746460235456,-153.0,0.00034944,2]
[359979002,1746460235465,-153.0,0.00034944,2]
[359979003,1746460235474,-153.0,0.00034944,2]
[359979004,1746460235484,-153.0,0.00034944,2]
[359979005,1746460235493,-153.0,0.00034944,2]
[359979006,1746460235502,-153.0,0.00034944,2]
[359979007,1746460235512,-153.0,0.00034944,2]
[359979008,1746460235521,-182.23035355,0.00034978,2]
[359979009,1746460235531,-1409.68809369,0.0003499,2]
[359979010,1746460235541,-2304.0,0.00035,2]
[359979011,1746460235551,-500.0,0.00035,8]
[359979012,1746460235560,-211.902,0.00035,5]
[359979013,1746460235571,-60000.0,0.00035,4]